fUSD/lending_fUSD_20241107
["ID","MTS","AMOUNT","RATE_DAILY","PERIOD"]
[341591344,1731011489843,-500.0,0.00028809,2]
[341591345,1731011489853,-827.61,0.00028809,2]
[341591346,1731011489864,-552.09210077,0.00028809,2]
[341591347,1731011489875,-800.46,0.00028809,2]
[341591348,1731011489884,-500.0,0.00028809,2]
[341591349,1731011489896,-581.87,0.00028809,2]
[341591350,1731011489905,-500.0,0.00028809,2]
[341591351,1731011489915,-500.0,0.00028809,2]
[341591352,1731011489924,-863.17,0.00028809,2]
[341591353,1731011489934,-500.0,0.00028809,2]
[341591354,1731011489943,-458.98,0.00028809,2]
[341591355,1731011489953,-546.47,0.00028809,2]
[341591356,1731011489963,-500.0,0.00028809,2]
[341591357,1731011489973,-500.0,0.00028809,2]
[341591358,1731011489984,-707.95,0.00028809,2]
[341591359,1731011489994,-500.0,0.00028809,2]
[341591360,1731011490003,-963.34,0.00028809,2]
[341591361,1731011490014,-500.0,0.00028809,2]
[341591362,1731011490023,-500.0,0.00028809,2]
[341591363,1731011490033,-512.69,0.00028809,2]
[341591364,1731011490043,-1137.63,0.00028809,2]
[341591365,1731011490054,-500.0,0.00028809,2]
[341591366,1731011490063,-2127.02,0.00028809,2]
[341591367,1731011490073,-500.0,0.00028809,2]
[341591368,1731011490082,-890.32,0.00028809,2]
[341591369,1731011490091,-1288.66,0.00028809,2]
[341591370,1731011490101,-500.0,0.00028809,2]
[341591371,1731011490111,-500.0,0.00028809,2]
[341591372,1731011490120,-503.11,0.00028809,2]
[341591373,1731011490130,-500.0,0.00028809,2]
[341591374,1731011490141,-1530.92,0.00028809,2]
[341591375,1731011490151,-500.0,0.00028809,2]
[341591376,1731011490160,-785.3,0.00028809,2]
[341591377,1731011490170,-500.0,0.00028809,2]
[341591378,1731011490179,-954.08,0.00028809,2]
[341591379,1731011490189,-500.0,0.00028809,2]
[341591380,1731011490199,-500.0,0.00028809,2]
[341591381,1731011490208,-1375.62,0.00028809,2]
[341591382,1731011490219,-618.68,0.00028809,2]
[341591383,1731011490228,-554.15,0.00028809,2]
[341591384,1731011490238,-508.01,0.00028809,2]
[341591385,1731011490247,-500.0,0.00028809,2]
[341591386,1731011490257,-706.5,0.00028809,2]
[341591387,1731011490267,-500.0,0.00028809,2]
[341591388,1731011490276,-659.14,0.00028809,2]
[341591389,1731011490286,-1684.43,0.00028809,2]
[341591390,1731011490296,-500.0,0.00028809,2]
[341591391,1731011490307,-500.0,0.00028809,2]
[341591392,1731011490316,-552.93,0.00028809,2]
[341591393,1731011490326,-620.12,0.00028809,2]
[341591394,1731011490336,-629.42,0.00028809,2]
[341591395,1731011490346,-500.0,0.00028809,2]
[341591396,1731011490358,-1604.7,0.00028809,2]
[341591397,1731011490367,-1037.8,0.00028809,2]
[341591398,1731011490376,-500.0,0.00028809,2]
[341591399,1731011490386,-634.53,0.00028809,2]
[341591400,1731011490398,-500.0,0.00028809,2]
[341591401,1731011490407,-1008.13,0.00028809,2]
[341591402,1731011490416,-500.0,0.00028809,2]
[341591403,1731011490426,-170.36437071,0.00028809,2]
[341591404,1731011490437,-888.49,0.00028809,2]
[341591405,1731011490446,-500.0,0.00028809,2]
[341591406,1731011490455,-665.72,0.00028809,2]
[341591407,1731011490465,-602.82,0.00028809,2]
[341591408,1731011490474,-845.97,0.00028809,2]
[341591409,1731011490486,-665.67,0.00028809,2]
[341591410,1731011490496,-500.0,0.00028809,2]
[341591411,1731011490506,-500.0,0.00028809,2]
[341591412,1731011490516,-779.11,0.00028809,2]
[341591413,1731011490525,-500.0,0.00028809,2]
[341591414,1731011490535,-500.0,0.00028809,2]
[341591415,1731011490544,-500.0,0.00028809,2]
[341591416,1731011490554,-1260.12,0.00028809,2]
[341591417,1731011490563,-151.0,0.00028835,7]
[341591418,1731011490573,-151.0,0.00028835,7]
[341591419,1731011490582,-151.0,0.00028836,7]
[341591420,1731011490592,-151.0,0.00028836,7]
[341591421,1731011490602,-151.0,0.00028836,7]
[341591422,1731011490612,-151.0,0.00028836,7]
[341591423,1731011490622,-151.0,0.00028836,7]
[341591424,1731011490632,-151.0,0.00028836,7]
[341591425,1731011490644,-151.0,0.00028836,7]
[341591426,1731011490654,-151.0,0.00028836,7]
[341591427,1731011490664,-151.0,0.00028836,7]
[341591428,1731011490674,-151.0,0.00028836,7]
[341591429,1731011490684,-595.99,0.00028908,2]
[341591430,1731011490693,-151.0,0.00028909,7]
[341591431,1731011490703,-184.7076,0.00028909,7]
[341591432,1731011490713,-184.7076,0.00028909,7]
[341591433,1731011490722,-151.0,0.00028909,7]
[341591434,1731011490732,-151.0,0.00028909,7]
[341591435,1731011490741,-151.0,0.00028909,7]
[341591436,1731011490751,-151.0,0.00028909,7]
[341591437,1731011490761,-151.0,0.00028909,7]
[341591438,1731011490770,-151.0,0.00028909,7]
[341591439,1731011490779,-151.0,0.00028909,7]
[341591440,1731011490789,-151.0,0.00028909,7]
[341591441,1731011490798,-151.0,0.00028909,7]
[341591442,1731011490807,-152.32072,0.00028909,7]
[341591443,1731011490817,-152.32072,0.00028909,7]
[341591444,1731011490827,-151.0,0.00028909,7]
[341591445,1731011490836,-151.0,0.00028909,7]
[341591446,1731011490846,-215.934326,0.00028909,7]
[341591447,1731011490855,-215.934326,0.00028909,7]
[341591448,1731011490865,-151.0,0.00028909,7]
[341591449,1731011490875,-500.0,0.00028909,2]
[341591450,1731011490885,-500.0,0.00028909,2]
[341591451,1731011490897,-151.0,0.0002891,7]
[341591452,1731011490909,-151.0,0.0002891,7]
[341591453,1731011490918,-152.242729,0.0002891,7]
[341591454,1731011490927,-156.565353,0.0002891,7]
[341591455,1731011490937,-151.0,0.0002891,7]
[341591456,1731011490947,-151.0,0.0002891,7]
[341591457,1731011490957,-621.18,0.0002891,2]
[341591458,1731011490966,-500.0,0.0002891,2]
[341591459,1731011490977,-371.55966672,0.0002891,2]
[341591460,1731011490987,-500.0,0.0002891,2]
[341591461,1731011490997,-690.39,0.0002891,2]
[341591462,1731011491007,-500.0,0.0002891,2]
[341591463,1731011491016,-500.0,0.0002891,2]
[341591464,1731011491026,-500.0,0.0002891,2]
[341591465,1731011491035,-385.92,0.00028976,120]
[341591466,1731011491045,-1800.0,0.00028984,7]
[341591467,1731011491056,-2000.0,0.00029,2]
[341591468,1731011491066,-2000.0,0.00029,2]
[341591469,1731011491075,-2000.0,0.00029,2]
[341591470,1731011491085,-2000.0,0.00029,2]
[341591471,1731011491094,-2000.0,0.00029,2]
[341591472,1731011491105,-192.0,0.00029,13]
[341591473,1731011491115,-2000.0,0.00029,2]
[341591474,1731011491125,-11768.69929164,0.00029,2]
[341591475,1731011491134,-7247.02509946,0.00029,2]
[341591476,1731011491145,-900.0,0.00029,30]
[341591477,1731011491155,-151.0,0.00029,7]
[341591478,1731011491165,-152.637879,0.00029,7]
[341591479,1731011491175,-151.0,0.00029,7]
[341591480,1731011491184,-188.846078,0.00029,7]
[341591481,1731011491194,-188.846078,0.00029,7]
[341591482,1731011491204,-450.0,0.00029,2]
[341591483,1731011491214,-213.398111,0.00029,7]
[341591484,1731011491223,-213.398106,0.00029,7]
[341591485,1731011491233,-248.368801,0.00029,7]
[341591486,1731011491243,-248.368794,0.00029,7]
[341591487,1731011491253,-543.592031,0.00029,7]
[341591488,1731011491263,-543.59204,0.00029,7]
[341591489,1731011491273,-251.485474,0.00029,7]
[341591490,1731011491283,-290.794095,0.00029,7]
[341591491,1731011491292,-290.7941,0.00029,7]
[341591492,1731011491302,-519.622171,0.00029,7]
[341591493,1731011491312,-224.723185,0.00029,7]
[341591494,1731011491321,-284.828298,0.00029,7]
[341591495,1731011491330,-284.828307,0.00029,7]
[341591496,1731011491340,-197.582513,0.00029,7]
[341591497,1731011491350,-197.582505,0.00029,7]
[341591498,1731011491359,-1000.0,0.00029,2]
[341591499,1731011491369,-595.99,0.00029009,2]
[341591500,1731011491378,-595.99,0.00029009,2]
[341591501,1731011491388,-151.0,0.0002901,7]
[341591502,1731011491403,-151.0,0.0002901,7]
[341591503,1731011491413,-184.7076,0.0002901,7]
[341591504,1731011491423,-184.7076,0.0002901,7]
[341591505,1731011491436,-239.620318,0.0002901,7]
[341591506,1731011491445,-239.620318,0.0002901,7]
[341591507,1731011491455,-151.0,0.0002901,7]
[341591508,1731011491464,-151.0,0.0002901,7]
[341591509,1731011491474,-151.0,0.0002901,7]
[341591510,1731011491483,-151.0,0.0002901,7]
[341591511,1731011491493,-151.0,0.0002901,7]
[341591512,1731011491503,-151.0,0.0002901,7]
[341591513,1731011491513,-151.0,0.0002901,7]
[341591514,1731011491522,-194.725454,0.0002901,7]
[341591515,1731011491532,-151.0,0.0002901,7]
[341591516,1731011491541,-151.0,0.0002901,7]
[341591517,1731011491551,-152.32072,0.0002901,7]
[341591518,1731011491561,-152.32072,0.0002901,7]
[341591519,1731011491571,-151.0,0.0002901,7]
[341591520,1731011491580,-2000.0,0.00029023,5]
[341591521,1731011491590,-581.6970992,0.00029031,2]
[341591522,1731011491599,-151.0,0.00029036,7]
[341591523,1731011491609,-151.0,0.00029037,7]
[341591524,1731011491620,-500.0,0.00029041,2]
[341591525,1731011491630,-500.0,0.00029041,2]
[341591526,1731011491641,-552.89,0.00029041,2]
[341591527,1731011491650,-500.0,0.00029041,2]
[341591528,1731011491660,-500.0,0.00029041,2]
[341591529,1731011491669,-500.0,0.00029041,2]
[341591530,1731011491679,-500.0,0.00029041,2]
[341591531,1731011491688,-996.29,0.00029041,2]
[341591532,1731011491698,-500.0,0.00029041,2]
[341591533,1731011491708,-832.94,0.00029041,2]
[341591534,1731011491718,-656.7,0.00029041,2]
[341591535,1731011491729,-500.0,0.00029041,2]
[341591536,1731011491739,-500.0,0.00029041,2]
[341591537,1731011491748,-242.5914119,0.00029041,2]
[341591538,1731011491758,-500.0,0.00029041,2]
[341591539,1731011491769,-622.33,0.00029041,2]
[341591540,1731011491778,-500.0,0.00029041,2]
[341591541,1731011491788,-500.0,0.00029041,2]
[341591542,1731011491798,-735.0,0.00029041,2]
[341591543,1731011491808,-500.0,0.00029041,2]
[341591544,1731011491818,-500.0,0.00029041,2]
[341591545,1731011491827,-1157.84,0.00029041,2]
[341591546,1731011491837,-500.0,0.00029041,2]
[341591547,1731011491847,-500.0,0.00029041,2]
[341591548,1731011491857,-500.0,0.00029041,2]
[341591549,1731011491867,-500.0,0.00029041,2]
[341591550,1731011491877,-500.0,0.00029041,2]
[341591551,1731011491887,-664.88,0.00029041,2]
[341591552,1731011491898,-500.0,0.00029041,2]
[341591553,1731011491907,-842.0,0.00029041,2]
[341591554,1731011491918,-500.0,0.00029041,2]
[341591555,1731011491929,-500.0,0.00029041,2]
[341591556,1731011491938,-500.0,0.00029041,2]
[341591557,1731011492175,-500.0,0.00029041,2]
[341591558,1731011492185,-500.0,0.00029041,2]
[341591559,1731011492195,-500.0,0.00029041,2]
[341591560,1731011492204,-500.0,0.00029041,2]
[341591561,1731011492213,-500.0,0.00029041,2]
[341591562,1731011492223,-500.0,0.00029041,2]
[341591563,1731011492232,-500.0,0.00029041,2]
[341591564,1731011492241,-500.0,0.00029041,2]
[341591565,1731011492250,-849.33,0.00029041,2]
[341591566,1731011492259,-500.0,0.00029041,2]
[341591567,1731011492268,-500.0,0.00029041,2]
[341591568,1731011492278,-500.0,0.00029041,2]
[341591569,1731011492287,-1146.86,0.00029041,2]
[341591570,1731011492296,-500.0,0.00029041,2]
[341591571,1731011492306,-2367.1,0.00029041,2]
[341591572,1731011492315,-812.73,0.00029041,2]
[341591573,1731011492325,-500.0,0.00029041,2]
[341591574,1731011492335,-500.0,0.00029041,2]
[341591575,1731011492344,-505.41,0.00029041,2]
[341591576,1731011492353,-500.0,0.00029041,2]
[341591577,1731011492363,-859.78,0.00029041,2]
[341591578,1731011492372,-500.0,0.00029041,2]
[341591579,1731011492381,-1030.59,0.00029041,2]
[341591580,1731011492392,-500.0,0.00029041,2]
[341591581,1731011492401,-174.63089938,0.00029041,2]
[341591582,1731011492410,-1049.18,0.00029041,2]
[341591583,1731011492420,-758.06,0.00029041,2]
[341591584,1731011492430,-500.0,0.00029041,2]
[341591585,1731011492439,-584.38,0.00029041,2]
[341591586,1731011492448,-795.48,0.00029041,2]
[341591587,1731011492458,-284.936427,0.00029041,7]
[341591588,1731011492467,-772.33,0.00029041,2]
[341591589,1731011492476,-284.936419,0.00029041,7]
[341591590,1731011492485,-500.0,0.00029041,2]
[341591591,1731011492494,-500.0,0.00029041,2]
[341591592,1731011492504,-500.0,0.00029041,2]
[341591593,1731011492513,-500.0,0.00029041,2]
[341591594,1731011492523,-826.25,0.00029041,2]
[341591595,1731011492532,-500.0,0.00029041,2]
[341591596,1731011492542,-500.0,0.00029041,2]
[341591597,1731011492551,-500.0,0.00029041,2]
[341591598,1731011492560,-922.87,0.00029041,2]
[341591599,1731011492570,-500.0,0.00029041,2]
[341591600,1731011492579,-570.07,0.00029041,2]
[341591601,1731011492589,-500.0,0.00029041,2]
[341591602,1731011492598,-990.65,0.00029041,2]
[341591603,1731011492607,-500.0,0.00029041,2]
[341591604,1731011492616,-1391.61,0.00029041,2]
[341591605,1731011492626,-500.0,0.00029041,2]
[341591606,1731011492635,-962.46,0.00029041,2]
[341591607,1731011492646,-500.0,0.00029041,2]
[341591608,1731011492655,-525.18,0.00029041,2]
[341591609,1731011492664,-500.0,0.00029041,2]
[341591610,1731011492673,-746.75,0.00029041,2]
[341591611,1731011492683,-500.0,0.00029041,2]
[341591612,1731011492692,-500.0,0.00029041,2]
[341591613,1731011492702,-500.0,0.00029041,2]
[341591614,1731011492711,-500.0,0.00029041,2]
[341591615,1731011492721,-500.0,0.00029041,2]
[341591616,1731011492730,-500.0,0.00029041,2]
[341591617,1731011492739,-623.38,0.00029041,2]
[341591618,1731011492748,-500.0,0.00029041,2]
[341591619,1731011492757,-1391.91,0.00029041,2]
[341591620,1731011492767,-500.0,0.00029041,2]
[341591621,1731011492776,-637.83953013,0.00029041,2]
[341591622,1731011492785,-513.5,0.00029041,2]
[341591623,1731011492795,-500.0,0.00029041,2]
[341591624,1731011492804,-500.0,0.00029041,2]
[341591625,1731011492813,-500.0,0.00029041,2]
[341591626,1731011492823,-500.0,0.00029041,2]
[341591627,1731011492832,-500.0,0.00029041,2]
[341591628,1731011492842,-500.0,0.00029041,2]
[341591629,1731011492851,-741.21,0.00029041,2]
[341591630,1731011492860,-500.0,0.00029041,2]
[341591631,1731011492869,-500.0,0.00029041,2]
[341591632,1731011492879,-500.0,0.00029041,2]
[341591633,1731011492888,-632.28,0.00029041,2]
[341591634,1731011492898,-708.91,0.00029041,2]
[341591635,1731011492907,-782.76,0.00029041,2]
[341591636,1731011492917,-500.0,0.00029041,2]
[341591637,1731011492927,-358.9,0.00029041,2]
[341591638,1731011492936,-602.34,0.00029041,2]
[341591639,1731011492945,-500.0,0.00029041,2]
[341591640,1731011492957,-500.0,0.00029041,2]
[341591641,1731011492967,-500.0,0.00029041,2]
[341591642,1731011492977,-500.0,0.00029041,2]
[341591643,1731011492988,-500.45,0.00029041,2]
[341591644,1731011492999,-500.0,0.00029041,2]
[341591645,1731011493008,-170.139018,0.00029041,2]
[341591646,1731011493018,-500.0,0.00029041,2]
[341591647,1731011493028,-449.81968568,0.00029041,2]
[341591648,1731011493037,-513.55,0.00029041,2]
[341591649,1731011493047,-500.0,0.00029041,2]
[341591650,1731011493058,-242.84628366,0.00029041,2]
[341591651,1731011493068,-500.0,0.00029041,2]
[341591652,1731011493078,-500.0,0.00029041,2]
[341591653,1731011493087,-847.49,0.00029041,2]
[341591654,1731011493097,-175.37020088,0.00029041,2]
[341591655,1731011493106,-627.61,0.00029041,2]
[341591656,1731011493116,-500.0,0.00029041,2]
[341591657,1731011493125,-500.0,0.00029041,2]
[341591658,1731011493136,-758.1,0.00029041,2]
[341591659,1731011493147,-500.0,0.00029041,2]
[341591660,1731011493156,-500.0,0.00029041,2]
[341591661,1731011493166,-500.0,0.00029041,2]
[341591662,1731011493175,-500.0,0.00029041,2]
[341591663,1731011493184,-500.0,0.00029041,2]
[341591664,1731011493194,-521.08,0.00029041,2]
[341591665,1731011493203,-500.0,0.00029041,2]
[341591666,1731011493213,-1032.51,0.00029041,2]
[341591667,1731011493222,-500.0,0.00029041,2]
[341591668,1731011493232,-500.0,0.00029041,2]
[341591669,1731011493241,-500.0,0.00029041,2]
[341591670,1731011493251,-500.0,0.00029041,2]
[341591671,1731011493261,-500.0,0.00029041,2]
[341591672,1731011493272,-512.03,0.00029041,2]
[341591673,1731011493282,-633.18,0.00029041,2]
[341591674,1731011493291,-500.0,0.00029041,2]
[341591675,1731011493301,-500.0,0.00029041,2]
[341591676,1731011493311,-500.0,0.00029041,2]
[341591677,1731011493322,-692.91,0.00029041,2]
[341591678,1731011493331,-1047.6,0.00029041,2]
[341591679,1731011493342,-730.81,0.00029041,2]
[341591680,1731011493351,-500.0,0.00029041,2]
[341591681,1731011493361,-1016.1,0.00029041,2]
[341591682,1731011493371,-1860.33,0.00029041,2]
[341591683,1731011493380,-500.0,0.00029041,2]
[341591684,1731011493391,-602.92,0.00029041,2]
[341591685,1731011493400,-500.0,0.00029041,2]
[341591686,1731011493410,-500.0,0.00029041,2]
[341591687,1731011493420,-500.0,0.00029041,2]
[341591688,1731011493433,-1864.69,0.00029041,2]
[341591689,1731011493443,-1880.48,0.00029041,2]
[341591690,1731011493452,-500.0,0.00029041,2]
[341591691,1731011493462,-500.0,0.00029041,2]
[341591692,1731011493472,-1023.36,0.00029041,2]
[341591693,1731011493481,-759.25,0.00029041,2]
[341591694,1731011493491,-1882.14,0.00029041,2]
[341591695,1731011493500,-500.0,0.00029041,2]
[341591696,1731011493510,-12863.27,0.00029041,2]
[341591697,1731011493519,-810.01,0.00029041,2]
[341591698,1731011493529,-500.0,0.00029041,2]
[341591699,1731011493538,-529.48,0.00029041,2]
[341591700,1731011493547,-235.32517616,0.00029041,2]
[341591701,1731011493557,-741.68,0.00029041,2]
[341591702,1731011493567,-1287.22,0.00029041,2]
[341591703,1731011493576,-500.0,0.00029041,2]
[341591704,1731011493586,-504.3,0.00029041,2]
[341591705,1731011493595,-1180.37,0.00029041,2]
[341591706,1731011493604,-844.4,0.00029041,2]
[341591707,1731011493614,-803.88,0.00029041,2]
[341591708,1731011493624,-500.0,0.00029041,2]
[341591709,1731011493633,-500.0,0.00029041,2]
[341591710,1731011493644,-542.4,0.00029041,2]
[341591711,1731011493654,-794.89,0.00029041,2]
[341591712,1731011493664,-4019.74,0.00029041,2]
[341591713,1731011493674,-500.0,0.00029041,2]
[341591714,1731011493683,-759.28,0.00029041,2]
[341591715,1731011493693,-652.81,0.00029041,2]
[341591716,1731011493702,-3623.88,0.00029041,2]
[341591717,1731011493711,-706.87,0.00029041,2]
[341591718,1731011493721,-1354.3,0.00029041,2]
[341591719,1731011493731,-576.29,0.00029041,2]
[341591720,1731011493741,-534.58,0.00029041,2]
[341591721,1731011493751,-511.69,0.00029041,2]
[341591722,1731011493760,-500.0,0.00029041,2]
[341591723,1731011493770,-1135.74,0.00029041,2]
[341591724,1731011493779,-500.0,0.00029041,2]
[341591725,1731011493789,-3829.5,0.00029041,2]
[341591726,1731011493798,-532.84,0.00029041,2]
[341591727,1731011493808,-1210.85,0.00029041,2]
[341591728,1731011493817,-2233.74,0.00029041,2]
[341591729,1731011493826,-1569.08,0.00029041,2]
[341591730,1731011493836,-2095.57,0.00029041,2]
[341591731,1731011493846,-500.0,0.00029041,2]
[341591732,1731011493858,-993.67,0.00029041,2]
[341591733,1731011493867,-500.0,0.00029041,2]
[341591734,1731011493876,-1109.47,0.00029041,2]
[341591735,1731011493886,-1076.61,0.00029041,2]
[341591736,1731011493896,-2427.73,0.00029041,2]
[341591737,1731011493906,-500.0,0.00029041,2]
[341591738,1731011493915,-822.66,0.00029041,2]
[341591739,1731011493925,-810.32,0.00029041,2]
[341591740,1731011493935,-822.49,0.00029041,2]
[341591741,1731011493945,-534.98,0.00029041,2]
[341591742,1731011493955,-860.77,0.00029041,2]
[341591743,1731011493967,-1190.75,0.00029041,2]
[341591744,1731011493978,-620.7,0.00029041,2]
[341591745,1731011493988,-500.0,0.00029041,2]
[341591746,1731011493997,-500.0,0.00029041,2]
[341591747,1731011494007,-500.0,0.00029041,2]
[341591748,1731011494017,-500.0,0.00029041,2]
[341591749,1731011494027,-500.0,0.00029041,2]
[341591750,1731011494037,-500.0,0.00029041,2]
[341591751,1731011494046,-500.0,0.00029041,2]
[341591752,1731011494058,-539.76,0.00029041,2]
[341591753,1731011494068,-1549.38,0.00029041,2]
[341591754,1731011494077,-2260.02,0.00029041,2]
[341591755,1731011494087,-500.0,0.00029041,2]
[341591756,1731011494096,-823.25,0.00029041,2]
[341591757,1731011494106,-1096.41,0.00029041,2]
[341591758,1731011494115,-500.0,0.00029041,2]
[341591759,1731011494125,-500.0,0.00029041,2]
[341591760,1731011494134,-669.24,0.00029041,2]
[341591761,1731011494145,-789.48,0.00029041,2]
[341591762,1731011494154,-1841.15,0.00029041,2]
[341591763,1731011494164,-548.44,0.00029041,2]
[341591764,1731011494175,-500.0,0.00029041,2]
[341591765,1731011494184,-698.1,0.00029041,2]
[341591766,1731011494194,-569.76,0.00029041,2]
[341591767,1731011494204,-1008.09,0.00029041,2]
[341591768,1731011494213,-500.0,0.00029041,2]
[341591769,1731011494223,-673.81,0.00029041,2]
[341591770,1731011494232,-500.0,0.00029041,2]
[341591771,1731011494242,-500.0,0.00029041,2]
[341591772,1731011494251,-2497.63,0.00029041,2]
[341591773,1731011494260,-500.0,0.00029041,2]
[341591774,1731011494270,-835.05,0.00029041,2]
[341591775,1731011494280,-1408.31,0.00029041,2]
[341591776,1731011494290,-904.6,0.00029041,2]
[341591777,1731011494300,-561.13,0.00029041,2]
[341591778,1731011494309,-526.97,0.00029041,2]
[341591779,1731011494319,-946.87,0.00029041,2]
[341591780,1731011494329,-6882.67,0.00029041,2]
[341591781,1731011494339,-500.0,0.00029041,2]
[341591782,1731011494348,-1999.04,0.00029041,2]
[341591783,1731011494358,-821.23,0.00029041,2]
[341591784,1731011494367,-560.03,0.00029041,2]
[341591785,1731011494377,-687.39,0.00029041,2]
[341591786,1731011494387,-2301.65,0.00029041,2]
[341591787,1731011494398,-1093.66,0.00029041,2]
[341591788,1731011494407,-500.0,0.00029041,2]
[341591789,1731011494417,-982.98,0.00029041,2]
[341591790,1731011494428,-991.72,0.00029041,2]
[341591791,1731011494438,-5959.66,0.00029041,2]
[341591792,1731011494448,-500.0,0.00029041,2]
[341591793,1731011494535,-901.99,0.00029041,2]
[341591794,1731011494546,-500.0,0.00029041,2]
[341591795,1731011494556,-1677.15,0.00029041,2]
[341591796,1731011494565,-731.06,0.00029041,2]
[341591797,1731011494575,-571.58,0.00029041,2]
[341591798,1731011494585,-500.0,0.00029041,2]
[341591799,1731011494594,-1253.48,0.00029041,2]
[341591800,1731011494604,-515.96,0.00029041,2]
[341591801,1731011494614,-6458.46,0.00029041,2]
[341591802,1731011494623,-500.0,0.00029041,2]
[341591803,1731011494633,-500.0,0.00029041,2]
[341591804,1731011494647,-4746.89,0.00029041,2]
[341591805,1731011494656,-500.0,0.00029041,2]
[341591806,1731011494665,-500.0,0.00029041,2]
[341591807,1731011494676,-669.2,0.00029041,2]
[341591808,1731011494685,-500.0,0.00029041,2]
[341591809,1731011494694,-500.0,0.00029041,2]
[341591810,1731011494704,-800.33,0.00029041,2]
[341591811,1731011494713,-1504.63,0.00029041,2]
[341591812,1731011494723,-667.25,0.00029041,2]
[341591813,1731011494732,-752.87,0.00029041,2]
[341591814,1731011494742,-1291.04216193,0.00029046,2]
[341591815,1731011494751,-1291.04216192,0.00029046,2]
[341591816,1731011494761,-151.0,0.00029054,7]
[341591817,1731011494770,-151.0,0.00029054,7]
[341591818,1731011494779,-595.99,0.00029081,2]
[341591819,1731011494789,-188.224618,0.00029082,7]
[341591820,1731011494798,-151.0,0.00029082,7]
[341591821,1731011494807,-215.934326,0.00029082,7]
[341591822,1731011494817,-215.934326,0.00029082,7]
[341591823,1731011494826,-151.0,0.00029082,7]
[341591824,1731011494835,-1000.0,0.00029082,2]
[341591825,1731011494846,-1210.33,0.00029082,2]
[341591826,1731011494856,-588.8,0.00029082,2]
[341591827,1731011494866,-609.69,0.00029082,2]
[341591828,1731011494875,-500.0,0.00029082,2]
[341591829,1731011494885,-500.0,0.00029082,2]
[341591830,1731011494897,-729.75,0.00029082,2]
[341591831,1731011494906,-694.0,0.00029082,2]
[341591832,1731011494916,-605.27,0.00029082,2]
[341591833,1731011494924,-615.66,0.00029082,2]
[341591834,1731011494934,-618.11,0.00029082,2]
[341591835,1731011494942,-740.59,0.00029082,2]
[341591836,1731011494951,-661.7,0.00029082,2]
[341591837,1731011494964,-1146.09,0.00029082,2]
[341591838,1731011494973,-903.61,0.00029082,2]
[341591839,1731011494982,-500.0,0.00029082,7]
[341591840,1731011494992,-611.13,0.00029082,2]
[341591841,1731011495002,-536.6,0.00029082,2]
[341591842,1731011495012,-500.0,0.00029082,2]
[341591843,1731011495023,-1742.22,0.00029082,2]